bitfinex/quotes_SOLUSD_20230110
["timestamp","ask_amount","ask_price","bid_price","bid_amount"]
[1673358637732,47.12,15.923,15.907,20.0]
[1673358637936,116.2225,15.924,15.908,47.23]
[1673358638379,116.2225,15.924,15.909,17.96]
[1673358638581,116.2225,15.924,15.91,20.0]
[1673358638793,116.2225,15.924,15.911,37.0]
[1673358638989,20.0,15.926,15.911,37.0]
[1673358639200,20.0,15.926,15.912,116.5252]
[1673358639412,47.11,15.925,15.913,17.0]
[1673358639837,0.96,15.924,15.913,17.0]
[1673358640582,47.12,15.923,15.913,17.0]
[1673358640774,20.0,15.922,15.913,17.0]
[1673358640991,20.96,15.922,15.913,17.0]
[1673358642251,26.65,15.92,15.91,20.0]
[1673358642474,26.65,15.92,15.907,20.0]
[1673358642790,20.0,15.919,15.907,20.0]
[1673358643609,20.0,15.919,15.907,40.0]
[1673358643830,20.0,15.919,15.908,17.0]
[1673358644039,20.0,15.919,15.909,20.0]
[1673358644474,20.0,15.919,15.91,17.0]
[1673358646368,26.65,15.92,15.91,17.0]
[1673358647096,67.13,15.919,15.904,112.5484]
[1673358647413,20.0,15.918,15.904,112.5484]
[1673358647606,20.0,15.916,15.904,112.5484]
[1673358650146,20.0,15.916,15.905,17.0]
[1673358653629,47.13,15.917,15.905,17.0]
[1673358653816,47.13,15.917,15.905,37.0]
[1673358654769,47.13,15.917,15.905,17.0]
[1673358654987,20.0,15.916,15.905,17.0]
[1673358655914,20.0,15.916,15.9,114.5039]
[1673358656141,20.0,15.914,15.9,114.5039]
[1673358656349,0.96,15.913,15.9,114.5039]
[1673358657396,0.96,15.913,15.901,20.0]
[1673358658343,0.96,15.913,15.902,17.0]
[1673358658557,0.96,15.913,15.9,114.5039]
[1673358658991,0.96,15.913,15.901,20.0]
[1673358659614,20.0,15.914,15.901,20.0]
[1673358661180,0.96,15.913,15.901,20.0]
[1673358661386,20.0,15.916,15.901,20.0]
[1673358661604,112.2952,15.927,15.903,20.0]
[1673358661929,20.0,15.926,15.905,20.0]
[1673358662122,20.0,15.926,15.906,21.92]
[1673358662336,20.0,15.926,15.907,20.0]
[1673358662545,112.2952,15.927,15.908,110.0569]
[1673358662761,112.2952,15.927,15.909,21.92]
[1673358662959,112.2952,15.927,15.91,17.0]
[1673358663182,112.2952,15.927,15.911,0.96]
[1673358663384,112.2952,15.927,15.911,15.23973038]
[1673358663593,112.2952,15.927,15.912,20.0]
[1673358663808,112.2952,15.927,15.912,136.4928]
[1673358664029,112.2952,15.927,15.913,20.334]
[1673358664652,112.2952,15.927,15.914,20.0]
[1673358665275,112.2952,15.927,15.915,17.0]
[1673358666012,113.0419,15.928,15.915,17.0]
[1673358667080,26.81,15.93,15.915,17.0]
[1673358667285,117.4295,15.928,15.916,1.92]
[1673358667499,166.734,15.931,15.916,1.92]
[1673358667820,20.0,15.93,15.916,21.92]
[1673358668957,20.0,15.93,15.916,20.0]
[1673358669372,0.96,15.929,15.916,20.0]
[1673358669812,20.96,15.929,15.917,17.0]
[1673358670002,20.96,15.929,15.915,19.57]
[1673358670635,20.96,15.929,15.914,21.16]
[1673358670844,20.0,15.929,15.915,1.92]
[1673358671058,20.0,15.929,15.915,21.92]
[1673358672241,40.0,15.93,15.915,21.92]
[1673358673192,20.0,15.93,15.915,21.92]
[1673358673807,20.0,15.93,15.916,17.0]
[1673358675195,20.0,15.93,15.915,20.0]
[1673358675503,20.0,15.929,15.915,20.0]
[1673358675708,47.1,15.928,15.913,20.0]
[1673358675926,37.0,15.927,15.911,14.27973038]
[1673358676240,47.11,15.926,15.909,20.0]
[1673358676449,37.0,15.925,15.907,40.0]
[1673358676646,47.11,15.924,15.907,40.0]
[1673358677387,20.0,15.923,15.907,40.0]
[1673358677586,47.12,15.922,15.907,40.0]
[1673358678865,47.11,15.924,15.907,40.0]
[1673358679074,47.11,15.925,15.907,40.0]
[1673358679269,47.11,15.925,15.907,62.91]
[1673358679477,20.0,15.924,15.907,62.91]
[1673358679685,47.12,15.923,15.905,22.77]
[1673358680011,133.64,15.92,15.901,21.54]
[1673358680215,20.0,15.918,15.899,20.0]
[1673358680435,47.13,15.917,15.899,20.0]
[1673358680849,47.13,15.919,15.901,20.0]
[1673358681052,0.96,15.918,15.901,20.0]
[1673358681264,47.13,15.917,15.903,20.0]
[1673358681487,47.13,15.917,15.904,17.0]
[1673358681698,47.13,15.919,15.905,0.96]
[1673358683290,0.96,15.918,15.905,0.96]
[1673358683476,47.13,15.917,15.905,0.96]
[1673358684631,47.13,15.917,15.903,20.0]
[1673358684842,47.13,15.917,15.901,20.0]
[1673358684843,20.0,15.918,15.901,20.0]
[1673358685056,20.0,15.916,15.901,20.0]
[1673358685268,47.14,15.915,15.901,20.0]
[1673358685475,47.14,15.915,15.9,20.0]
[1673358685688,20.0,15.914,15.899,7.25735]
[1673358685903,20.0,15.914,15.9,20.0]
[1673358686111,48.11,15.913,15.9,20.0]
[1673358686762,48.11,15.913,15.899,20.0]
[1673358686985,20.0,15.912,15.898,20.0]
[1673358687293,48.11,15.911,15.898,20.0]
[1673358688121,20.0,15.91,15.897,20.0]
[1673358688330,48.12,15.909,15.897,20.0]
[1673358688537,47.16,15.909,15.897,20.0]
[1673358688759,47.13,15.917,15.898,20.0]
[1673358689080,20.0,15.916,15.898,20.0]
[1673358689400,47.14,15.915,15.898,20.0]
[1673358691077,20.0,15.914,15.898,20.0]
[1673358691284,48.11,15.913,15.898,20.0]
[1673358692217,47.14,15.915,15.898,20.0]
[1673358693813,0.96,15.914,15.898,20.0]
[1673358694004,47.15,15.913,15.898,20.0]
[1673358694335,0.96,15.912,15.898,20.0]
[1673358696332,0.96,15.912,15.899,0.96]
[1673358697273,0.96,15.912,15.899,20.96]
[1673358697906,0.96,15.912,15.9,17.0]
[1673358698970,0.96,15.912,15.899,20.96]
[1673358699165,0.96,15.912,15.899,20.0]
[1673358699365,0.96,15.911,15.899,20.0]
[1673358700523,47.14,15.915,15.899,20.0]
[1673358700738,314.56267444,15.944,15.9,191.29218449]
[1673358700739,134.31,15.93,15.9,191.29218449]
[1673358700947,20.0,15.926,15.901,20.96]
[1673358701160,20.0,15.926,15.902,24.271]
[1673358701481,67.11,15.926,15.903,20.96]
[1673358701693,67.11,15.926,15.904,41.719]
[1673358701888,67.11,15.926,15.905,20.0]
[1673358702099,67.11,15.926,15.906,27.345]
[1673358702321,67.11,15.926,15.907,38.92]
[1673358702537,67.11,15.926,15.908,29.648]
[1673358702743,67.11,15.926,15.908,144.9615]
[1673358702952,67.11,15.926,15.909,17.0]
[1673358703165,67.11,15.926,15.91,20.0]
[1673358703379,67.11,15.926,15.911,17.0]
[1673358703802,17.96,15.925,15.911,17.0]
[1673358704538,20.0,15.924,15.911,17.0]
[1673358704849,0.96,15.923,15.911,17.0]
[1673358715588,20.0,15.935,15.912,21.37245837]
[1673358715800,20.0,15.935,15.914,1.37573792]
[1673358716014,20.0,15.935,15.916,1.37573792]
[1673358716221,114.5703,15.936,15.916,21.37573792]
[1673358716426,114.5703,15.936,15.917,99.54246989]
[1673358716627,114.5703,15.936,15.919,1.37573792]
[1673358717048,114.5703,15.936,15.92,20.0]
[1673358717263,114.5703,15.936,15.921,1.37573792]
[1673358717474,20.0,15.935,15.921,18.37573792]
[1673358719804,0.96,15.934,15.921,18.37573792]
[1673358720014,0.96,15.934,15.921,1.37573792]
[1673358720221,26.84,15.93,15.921,1.37573792]
[1673358720415,47.1,15.929,15.912,110.6081]
[1673358720938,20.0,15.928,15.912,110.6081]
[1673358723373,0.96,15.927,15.912,110.6081]
[1673358723991,0.96,15.927,15.916,17.0]
[1673358729367,0.96,15.927,15.913,20.0]
[1673358730609,0.96,15.927,15.914,17.0]
[1673358733571,0.96,15.927,15.912,110.6081]
[1673358734432,0.96,15.927,15.913,20.0]
[1673358734832,0.96,15.927,15.914,17.0]
[1673358735041,87.1,15.929,15.914,17.0]
[1673358735252,40.0,15.929,15.914,17.0]
[1673358735774,20.0,15.928,15.914,17.0]
[1673358737157,40.0,15.929,15.914,17.0]
[1673358737679,114.5703,15.936,15.916,0.90864223]
[1673358737889,114.5703,15.936,15.918,1.00274255]
[1673358738085,138.8429,15.939,15.921,1.00274255]
[1673358738297,138.8429,15.939,15.921,18.00274255]
[1673358738840,138.8429,15.939,15.923,1.00274255]
[1673358739027,138.8429,15.939,15.923,18.00274255]
[1673358739994,138.8429,15.939,15.923,1.00274255]
[1673358740727,138.8429,15.939,15.923,21.00274255]
[1673358742601,138.8429,15.939,15.923,20.0]
[1673358743560,138.8429,15.939,15.922,113.3463]
[1673358743768,138.8429,15.939,15.923,17.0]
[1673358743984,138.8429,15.939,15.923,21.395]
[1673358744306,138.8429,15.939,15.923,41.395]
[1673358744515,138.8429,15.939,15.924,0.66570402]
[1673358745358,138.8429,15.939,15.923,41.395]
[1673358745881,138.8429,15.939,15.923,37.0]
[1673358746722,93.96,15.94,15.924,20.0]
[1673358746906,20.0,15.939,15.925,17.0]
[1673358747120,20.0,15.938,15.925,17.0]
[1673358747344,20.0,15.938,15.924,17.0]
[1673358749019,20.0,15.938,15.923,20.0]
[1673358749237,47.07,15.937,15.924,0.62695261]
[1673358749434,20.0,15.936,15.922,113.3463]
[1673358750392,0.96,15.935,15.922,113.3463]
[1673358751342,0.96,15.935,15.923,0.6782299]
[1673358752282,0.96,15.935,15.923,20.0]
[1673358752491,20.0,15.936,15.924,0.62513445]
[1673358752702,0.96,15.935,15.924,17.62513445]
[1673358752914,0.96,15.935,15.924,17.0]
[1673358753122,47.07,15.938,15.925,0.65947705]
[1673358753331,47.07,15.938,15.924,17.0]
[1673358753646,20.0,15.937,15.924,17.0]
[1673358754795,20.0,15.937,15.925,0.63491194]
[1673358755009,20.0,15.937,15.924,17.0]
[1673358757038,47.07,15.938,15.924,17.0]
[1673358757332,87.07,15.939,15.924,17.0]
[1673358757540,20.0,15.938,15.924,17.0]
[1673358758175,87.07,15.939,15.924,17.0]
[1673358758369,67.07,15.939,15.924,17.0]
[1673358758591,67.07,15.939,15.925,20.0]
[1673358758918,67.07,15.939,15.926,17.0]
[1673358759126,1228.5,15.96,15.928,20.0]
[1673358759127,283.8879,15.944,15.928,20.0]
[1673358759329,236.8379,15.944,15.93,1.20041717]
[1673358759537,47.06,15.943,15.93,1.20041717]
[1673358759864,47.06,15.943,15.93,21.20041717]
[1673358760068,18.55825296,15.949,15.932,1.32180377]
[1673358760069,47.04,15.948,15.932,1.32180377]
[1673358760279,20.0,15.947,15.932,21.32180377]
[1673358760475,47.05,15.946,15.934,1.32180377]
[1673358760894,20.0,15.945,15.934,1.32180377]
[1673358761115,47.05,15.946,15.934,1.32180377]
[1673358761319,20.0,15.945,15.934,1.32180377]
[1673358762587,47.05,15.946,15.934,1.32180377]
[1673358763007,20.0,15.945,15.934,1.32180377]
[1673358764473,47.05,15.946,15.934,1.32180377]
[1673358765121,20.0,15.945,15.934,1.32180377]
[1673358767645,47.05,15.946,15.934,1.32180377]
[1673358768385,20.0,15.945,15.934,1.32180377]
[1673358769649,47.05,15.944,15.934,1.32180377]
[1673358770175,20.0,15.945,15.934,1.32180377]
[1673358770806,47.05,15.946,15.934,1.32180377]
[1673358771641,20.0,15.945,15.934,1.32180377]
[1673358772388,47.05,15.946,15.934,1.32180377]
[1673358772580,20.0,15.945,15.934,1.32180377]
[1673358773003,47.05,15.946,15.934,1.32180377]
[1673358774173,67.04,15.947,15.935,1.92]
[1673358774486,67.04,15.947,15.936,1.32180377]
[1673358775122,47.04,15.947,15.936,1.32180377]
[1673358779518,47.04,15.947,15.937,0.96]
[1673358779723,47.04,15.947,15.938,1.32180377]
[1673358780273,47.04,15.948,15.938,1.32180377]
[1673358780456,20.0,15.947,15.938,1.32180377]
[1673358780670,47.05,15.946,15.937,1.32180377]
[1673358781315,20.0,15.947,15.937,1.32180377]
[1673358781511,47.05,15.946,15.937,1.32180377]
[1673358782245,47.04,15.948,15.937,1.32180377]
[1673358782461,20.0,15.947,15.937,1.32180377]
[1673358782678,47.05,15.946,15.935,1.32180377]
[1673358782876,47.05,15.946,15.934,20.0]
[1673358783089,47.05,15.946,15.935,0.63388312]
[1673358783717,20.0,15.945,15.932,0.75960834]
[1673358783927,47.05,15.944,15.931,110.5344]
[1673358784144,47.05,15.944,15.933,0.67609967]
[1673358784356,47.05,15.944,15.932,20.0]
[1673358784565,47.05,15.944,15.933,0.65397052]
[1673358785514,47.05,15.946,15.933,0.65397052]
[1673358785718,47.05,15.946,15.932,0.80345541]
[1673358786140,26.67,15.94,15.929,20.0]
[1673358786467,67.07,15.939,15.92,129.8179]
[1673358786663,26.67,15.93,15.915,7.25005]
[1673358786869,67.1,15.929,15.913,115.1197]
[1673358787283,20.96,15.928,15.906,20.0]
[1673358787503,47.1,15.927,15.906,135.1197]
[1673358787720,20.0,15.926,15.906,135.1197]
[1673358788065,48.07,15.925,15.906,149.39943038]
[1673358789392,48.07,15.925,15.906,156.65358038]
[1673358789727,48.07,15.925,15.908,20.0]
[1673358789940,48.07,15.925,15.909,38.92]
[1673358790125,48.07,15.925,15.91,20.0]
[1673358790456,0.96,15.925,15.91,34.27973038]
[1673358790670,47.11,15.924,15.91,34.27973038]
[1673358790985,0.96,15.923,15.91,34.27973038]
[1673358791195,47.12,15.922,15.91,34.27973038]
[1673358791405,0.96,15.921,15.91,34.27973038]
[1673358791847,0.96,15.921,15.911,17.0]
[1673358793197,47.11,15.923,15.921,0.09568849]
[1673358793929,20.0,15.924,15.921,0.09568849]
[1673358794161,47.11,15.923,15.921,0.09568849]
[1673358798467,20.0,15.924,15.921,0.09568849]
[1673358803288,20.0,15.924,15.909,20.0]
[1673358803710,20.0,15.922,15.909,20.0]
[1673358804670,20.0,15.922,15.91,17.0]
[1673358804858,20.0,15.922,15.909,20.0]
[1673358805624,20.0,15.922,15.909,18.5]
[1673358806349,20.0,15.922,15.91,17.0]
[1673358806850,0.96,15.921,15.91,17.0]
[1673358809602,0.96,15.921,15.903,56.30299129]
[1673358809603,26.67,15.92,15.905,112.8118]
[1673358809810,20.0,15.918,15.905,127.09153038]
[1673358810218,0.96,15.917,15.905,127.09153038]
[1673358810646,0.96,15.917,15.905,14.27973038]
[1673358811899,0.96,15.917,15.906,17.0]
[1673358812339,0.96,15.917,15.905,17.0]
[1673358812755,0.96,15.917,15.906,20.0]
[1673358812965,0.96,15.917,15.907,17.0]
[1673358814119,20.0,15.928,15.908,20.0]
[1673358814357,112.3906,15.925,15.91,20.0]
[1673358814546,112.3906,15.925,15.911,17.0]
[1673358815803,20.0,15.919,15.894,20.0]
[1673358816019,26.93,15.91,15.898,108.6634]
[1673358816539,26.93,15.91,15.899,20.0]
[1673358817280,26.93,15.91,15.9,37.0]
[1673358817593,26.93,15.91,15.9,20.0]
[1673358818863,26.93,15.91,15.901,17.0]
[1673358819062,20.0,15.915,15.902,20.0]
[1673358819274,20.0,15.915,15.903,17.0]
[1673358819485,20.0,15.915,15.901,17.0]
[1673358820656,20.0,15.913,15.901,17.0]
[1673358822942,20.0,15.917,15.901,24.25643]
[1673358822943,18.55825296,15.917,15.901,24.25643]
[1673358823152,18.55825296,15.917,15.902,29.17598]
[1673358823375,116.3085,15.925,15.903,44.25552]
[1673358823697,116.3085,15.925,15.905,20.0]
[1673358823909,116.3085,15.925,15.91,26.85]
[1673358824130,116.3085,15.925,15.911,17.0]
[1673358824646,116.3085,15.925,15.912,20.0]
[1673358824838,116.3085,15.925,15.913,17.0]
[1673358825049,139.6007,15.928,15.913,17.0]
[1673358826117,119.6007,15.928,15.913,31.79438044]
[1673358826432,119.6007,15.928,15.913,17.0]
[1673358826632,119.6007,15.928,15.914,20.0]
[1673358827171,119.6007,15.928,15.915,17.0]
[1673358827795,0.96,15.927,15.915,17.0]
[1673358828541,20.96,15.927,15.915,17.0]
[1673358828949,20.96,15.927,15.913,3.385]
[1673358829271,20.96,15.927,15.912,117.5241]
[1673358830316,20.96,15.927,15.913,17.0]
[1673358832216,47.11,15.926,15.913,17.0]
[1673358832948,20.0,15.925,15.913,17.0]
[1673358838103,47.11,15.924,15.913,17.0]
[1673358838312,20.96,15.923,15.913,17.0]
[1673358842743,20.96,15.923,15.907,20.0]
[1673358843062,26.81,15.92,15.907,20.0]
[1673358843280,67.13,15.919,15.906,112.0434]
[1673358843465,20.0,15.918,15.906,112.0434]
[1673358844943,67.13,15.919,15.897,20.0]
[1673358845160,26.81,15.91,15.904,43.03759796]
[1673358845363,26.81,15.91,15.9,20.0]
[1673358845778,26.81,15.91,15.898,20.0]
[1673358845989,26.81,15.91,15.899,20.0]
[1673358846300,26.81,15.91,15.9,20.0]
[1673358846511,26.81,15.91,15.9,37.0]
[1673358846949,26.81,15.91,15.901,20.0]
[1673358847162,26.81,15.91,15.9,20.0]
[1673358847372,20.0,15.913,15.9,20.0]
[1673358847775,47.14,15.914,15.9,20.0]
[1673358848521,20.0,15.913,15.901,17.0]
[1673358850210,20.0,15.917,15.901,17.0]
[1673358850524,117.993,15.918,15.902,20.96]
[1673358850839,117.993,15.918,15.902,20.0]
[1673358851052,20.0,15.917,15.903,17.0]
[1673358851563,67.13,15.917,15.903,17.0]
[1673358851772,0.96,15.916,15.903,17.0]
[1673358853578,20.0,15.914,15.9,20.0]
[1673358853789,0.96,15.913,15.899,20.0]
[1673358854941,0.96,15.913,15.9,17.0]
[1673358855583,0.96,15.913,15.899,20.0]
[1673358856305,26.88,15.91,15.897,118.3225]
[1673358856521,20.0,15.909,15.897,118.3225]
[1673358857578,67.16,15.909,15.897,118.3225]
[1673358857788,20.0,15.909,15.897,118.3225]
[1673358858005,0.96,15.908,15.897,118.3225]
[1673358858540,0.96,15.908,15.893,5.6687597]
[1673358858856,0.96,15.908,15.894,20.0]
[1673358859910,0.96,15.908,15.895,17.0]
[1673358863374,20.96,15.908,15.895,17.0]
[1673358863789,20.96,15.908,15.894,17.0]
[1673358864627,17.0,15.907,15.893,5.6687597]
[1673358864832,48.13,15.906,15.893,5.6687597]
[1673358865038,20.96,15.906,15.893,5.6687597]
[1673358865686,20.96,15.906,15.893,25.6687597]
[1673358865914,20.96,15.906,15.894,17.0]
[1673358867167,0.96,15.906,15.895,20.0]
[1673358867354,20.0,15.909,15.896,17.0]
[1673358867562,20.0,15.919,15.897,20.0]
[1673358867771,137.2499,15.918,15.898,0.96]
[1673358868100,137.2499,15.918,15.899,8.21735]
[1673358868299,20.0,15.919,15.9,165.27769]
[1673358868503,20.0,15.919,15.901,8.21643]
[1673358868713,20.0,15.919,15.902,0.96]
[1673358868943,20.0,15.919,15.902,20.0]
[1673358869154,20.0,15.919,15.903,17.0]
[1673358869342,20.0,15.919,15.904,113.1912]
[1673358869761,20.0,15.919,15.901,8.21643]
[1673358869995,26.81,15.91,15.9,20.0]
[1673358870219,0.96,15.909,15.898,40.0]
[1673358871877,0.96,15.909,15.899,17.0]
[1673358872091,20.96,15.909,15.897,117.0608]
[1673358872315,68.12,15.909,15.897,117.0608]
[1673358872623,20.0,15.908,15.897,117.0608]
[1673358873781,20.0,15.908,15.893,5.6687597]
[1673358873974,0.96,15.907,15.893,5.6687597]
[1673358874188,20.0,15.906,15.893,5.6687597]
[1673358874415,0.96,15.905,15.893,5.6687597]
[1673358876099,20.0,15.903,15.893,5.6687597]
[1673358876638,0.96,15.902,15.893,5.6687597]
[1673358877254,47.17,15.905,15.893,5.6687597]
[1673358877469,20.0,15.904,15.893,5.6687597]
[1673358877681,20.0,15.904,15.894,17.0]
[1673358878419,47.17,15.905,15.894,17.0]
[1673358878738,0.96,15.904,15.894,17.0]
[1673358880103,47.16,15.907,15.894,17.0]
[1673358880299,20.0,15.906,15.894,17.0]
[1673358881347,20.0,15.906,15.893,5.6687597]
[1673358882820,20.0,15.906,15.894,17.0]
[1673358883573,17.0,15.905,15.893,5.6687597]
[1673358883765,20.0,15.904,15.893,5.6687597]
[1673358883981,67.16,15.908,15.893,5.6687597]
[1673358884190,20.0,15.908,15.893,5.6687597]
[1673358885236,20.0,15.908,15.894,17.0]
[1673358885880,20.0,15.908,15.889,20.0]
[1673358885881,134.92,15.9,15.87,27.24]
[1673358886085,87.19,15.899,15.873,27.26923]
[1673358886290,137.66308074,15.899,15.874,7.26878]
[1673358886505,70.47308074,15.898,15.874,22.06316044]
[1673358886823,20.0,15.896,15.876,20.0]
[1673358887027,47.2,15.895,15.876,20.0]
[1673358887672,20.0,15.894,15.876,20.0]
[1673358887879,67.19,15.896,15.876,20.0]
[1673358888613,67.19,15.896,15.877,20.0]
[1673358888815,67.19,15.896,15.878,20.0]
[1673358889025,47.19,15.896,15.879,20.0]
[1673358889575,47.19,15.896,15.881,20.0]
[1673358889757,47.19,15.896,15.882,17.0]
[1673358891118,47.19,15.896,15.881,17.0]
[1673358891641,47.19,15.896,15.881,37.0]
[1673358893155,47.19,15.896,15.881,17.0]
[1673358893455,20.0,15.895,15.881,17.0]
[1673358893645,47.2,15.894,15.881,37.0]
[1673358894268,47.19,15.896,15.881,37.0]
[1673358894905,47.19,15.896,15.881,17.0]
[1673358895115,20.0,15.895,15.881,17.0]
[1673358895432,47.2,15.894,15.881,17.0]
[1673358895869,20.0,15.893,15.88,111.5639]
[1673358896502,47.21,15.892,15.88,111.5639]
[1673358896706,47.2,15.894,15.881,20.0]
[1673358896939,47.19,15.896,15.881,20.0]
[1673358897463,47.19,15.896,15.882,17.0]
[1673358897677,67.19,15.899,15.882,17.0]
[1673358897992,67.19,15.899,15.883,20.96]
[1673358898207,67.19,15.899,15.884,17.0]
[1673358898820,0.96,15.898,15.884,17.0]
[1673358899255,0.96,15.898,15.885,20.0]
[1673358899450,0.96,15.898,15.886,17.0]
[1673358900710,20.0,15.899,15.886,17.0]
[1673358901127,20.0,15.901,15.886,17.0]
[1673358901877,20.0,15.9,15.886,17.0]
[1673358902084,20.0,15.899,15.886,17.0]
[1673358902281,0.96,15.898,15.886,17.0]
[1673358902925,20.0,15.902,15.887,21.92]
[1673358903450,20.0,15.902,15.888,17.0]
[1673358903770,20.0,15.902,15.889,20.0]
[1673358904171,20.0,15.902,15.89,17.0]
[1673358904607,20.0,15.902,15.888,113.9645]
[1673358904608,26.82,15.9,15.888,113.9645]
[1673358904811,68.15,15.899,15.88,111.5639]
[1673358905026,20.0,15.898,15.88,111.5639]
[1673358905350,47.19,15.897,15.883,20.0]
[1673358905555,47.19,15.897,15.88,111.5639]
[1673358905757,20.0,15.896,15.88,111.5639]
[1673358906797,48.16,15.895,15.88,111.5639]
[1673358907008,20.0,15.894,15.88,111.5639]
[1673358907971,20.0,15.894,15.883,17.0]
[1673358909750,47.19,15.897,15.884,20.0]
[1673358909970,67.19,15.898,15.885,17.0]
[1673358910927,67.19,15.898,15.884,17.0]
[1673358911110,0.96,15.897,15.883,17.0]
[1673358911323,67.19,15.898,15.883,17.0]
[1673358911652,67.19,15.898,15.883,37.0]
[1673358911838,87.19,15.899,15.884,20.0]
[1673358912052,20.0,15.898,15.885,17.0]
[1673358914175,20.0,15.896,15.88,138.5539]
[1673358914387,0.96,15.895,15.88,111.5639]
[1673358915124,0.96,15.895,15.883,20.0]
[1673358915318,0.96,15.895,15.884,17.0]
[1673358917128,67.19,15.898,15.884,17.0]
[1673358919019,20.0,15.898,15.884,17.0]
[1673358919333,20.0,15.898,15.885,1.92]
[1673358919869,20.0,15.898,15.884,17.0]
[1673358920070,67.19,15.898,15.884,17.0]
[1673358920388,20.0,15.898,15.884,17.0]
[1673358920705,0.96,15.897,15.884,17.0]
[1673358922151,0.96,15.897,15.864,75.532]
[1673358922152,135.05,15.89,15.864,75.532]
[1673358922367,26.77,15.88,15.864,75.532]
[1673358922578,0.96,15.879,15.865,20.0]
[1673358924465,19.51825296,15.879,15.861,20.0]
[1673358924675,67.22,15.887,15.866,13.98700563]
[1673358924885,20.0,15.879,15.861,20.0]
[1673358925116,26.77,15.88,15.865,13.98700563]
[1673358925525,20.0,15.884,15.865,13.98700563]
[1673358926270,0.96,15.883,15.87,37.0]
[1673358927010,0.96,15.883,15.87,20.0]
[1673358927434,20.0,15.879,15.87,20.0]
[1673358929640,26.77,15.88,15.87,20.0]
[1673358929956,26.77,15.88,15.871,17.0]
[1673358929957,27.08,15.88,15.871,17.0]
[1673358930589,67.22,15.887,15.872,20.0]
[1673358930987,67.22,15.887,15.873,17.0]
[1673358931638,20.0,15.887,15.873,17.0]
[1673358931955,137.8526,15.888,15.874,20.0]
[1673358932168,137.8526,15.888,15.875,17.0]
[1673358933303,47.22,15.887,15.875,17.0]
[1673358934057,165.0726,15.888,15.875,17.0]
[1673358934263,117.8526,15.888,15.875,17.0]